fUSD/lending_fUSD_20250716
["ID","MTS","AMOUNT","RATE_DAILY","PERIOD"]
[372532480,1752673873131,-2829.33,0.00022054,2]
[372532481,1752673873140,-703.06,0.00022054,2]
[372532482,1752673873150,-18735.64,0.00022054,2]
[372532483,1752673873160,-460.0,0.00022054,2]
[372532484,1752673873170,-1930.19,0.00022054,2]
[372532485,1752673873180,-644.68,0.00022054,2]
[372532486,1752673873190,-1305.54,0.00022054,2]
[372532487,1752673873199,-571.43,0.00022054,2]
[372532488,1752673873209,-907.57,0.00022054,2]
[372532489,1752673873219,-2259.08,0.00022054,2]
[372532490,1752673873229,-628.04,0.00022054,2]
[372532491,1752673873239,-1534.84,0.00022054,2]
[372532492,1752673873249,-460.0,0.00022054,2]
[372532493,1752673873259,-1570.3,0.00022054,2]
[372532494,1752673873270,-460.0,0.00022054,2]
[372532495,1752673873280,-858.13,0.00022054,2]
[372532496,1752673873290,-672.31,0.00022054,2]
[372532497,1752673873300,-460.0,0.00022054,2]
[372532498,1752673873310,-460.0,0.00022054,2]
[372532499,1752673873320,-1434.52,0.00022054,2]
[372532500,1752673873330,-460.0,0.00022054,2]
[372532501,1752673873340,-849.12,0.00022054,2]
[372532502,1752673873350,-1422.98,0.00022054,2]
[372532503,1752673873361,-2005.64,0.00022054,2]
[372532504,1752673873372,-1056.04,0.00022054,2]
[372532505,1752673873383,-460.0,0.00022054,2]
[372532506,1752673873394,-1249.33,0.00022054,2]
[372532507,1752673873405,-3560.63,0.00022054,2]
[372532508,1752673873415,-1294.01,0.00022054,2]
[372532509,1752673873425,-787.22,0.00022054,2]
[372532510,1752673873434,-460.0,0.00022054,2]
[372532511,1752673873444,-554.15,0.00022054,2]
[372532512,1752673873453,-460.0,0.00022054,2]
[372532513,1752673873463,-1772.87,0.00022054,2]
[372532514,1752673873473,-460.0,0.00022054,2]
[372532515,1752673873482,-3861.06,0.00022054,2]
[372532516,1752673873492,-8076.09,0.00022054,2]
[372532517,1752673873502,-2392.2,0.00022054,2]
[372532518,1752673873511,-460.0,0.00022054,2]
[372532519,1752673873522,-460.0,0.00022054,2]
[372532520,1752673873532,-843.71,0.00022054,2]
[372532521,1752673873541,-460.0,0.00022054,2]
[372532522,1752673873551,-2983.25,0.00022054,2]
[372532523,1752673873560,-503.79170895,0.00022054,2]
[372532524,1752673873569,-2283.57,0.00022054,2]
[372532525,1752673873579,-460.0,0.00022054,2]
[372532526,1752673873589,-460.0,0.00022054,2]
[372532527,1752673873598,-2017.94,0.00022054,2]
[372532528,1752673873608,-460.0,0.00022054,2]
[372532529,1752673873619,-460.0,0.00022054,2]
[372532530,1752673873631,-460.0,0.00022054,2]
[372532531,1752673873646,-460.0,0.00022054,2]
[372532532,1752673873662,-6362.63,0.00022054,2]
[372532533,1752673873674,-1318.21,0.00022054,2]
[372532534,1752673873686,-601.67020295,0.00022054,2]
[372532535,1752673873696,-643.01,0.00022054,2]
[372532536,1752673873707,-460.0,0.00022054,2]
[372532537,1752673873717,-460.0,0.00022054,2]
[372532538,1752673873727,-573.79,0.00022054,2]
[372532539,1752673873737,-460.0,0.00022054,2]
[372532540,1752673873747,-9971.32,0.00022054,2]
[372532541,1752673873758,-460.0,0.00022054,2]
[372532542,1752673873770,-1109.75,0.00022054,2]
[372532543,1752673873780,-7316.15,0.00022054,2]
[372532544,1752673873791,-1551.2,0.00022054,2]
[372532545,1752673873802,-2935.54,0.00022054,2]
[372532546,1752673873813,-1695.57,0.00022054,2]
[372532547,1752673873824,-460.0,0.00022054,2]
[372532548,1752673873835,-631.99,0.00022054,2]
[372532549,1752673873845,-462.46350476,0.00022054,2]
[372532550,1752673873856,-460.0,0.00022054,2]
[372532551,1752673873866,-1047.97,0.00022054,2]
[372532552,1752673873876,-1013.1,0.00022054,2]
[372532553,1752673873886,-800.18,0.00022054,2]
[372532554,1752673873896,-460.0,0.00022054,2]
[372532555,1752673873912,-1938.23,0.00022054,2]
[372532556,1752673873922,-518.5,0.00022054,2]
[372532557,1752673873932,-728.69,0.00022054,2]
[372532558,1752673873942,-571.27,0.00022054,2]
[372532559,1752673873951,-460.0,0.00022054,2]
[372532560,1752673873961,-1029.87,0.00022054,2]
[372532561,1752673873970,-1200.74,0.00022054,2]
[372532562,1752673873980,-460.0,0.00022054,2]
[372532563,1752673873990,-460.0,0.00022054,2]
[372532564,1752673873999,-460.0,0.00022054,2]
[372532565,1752673874009,-3283.55,0.00022054,2]
[372532566,1752673874018,-500.0,0.00022054,2]
[372532567,1752673874028,-2686.55,0.00022054,2]
[372532568,1752673874038,-1826.93,0.00022054,2]
[372532569,1752673874047,-786.87,0.00022054,2]
[372532570,1752673874057,-2594.87,0.00022054,2]
[372532571,1752673874066,-2085.39,0.00022054,2]
[372532572,1752673874076,-2619.98,0.00022054,2]
[372532573,1752673874086,-6326.27,0.00022054,2]
[372532574,1752673874095,-842.64,0.00022054,2]
[372532575,1752673874105,-690.19,0.00022054,2]
[372532576,1752673874114,-460.0,0.00022054,2]
[372532577,1752673874124,-1158.64,0.00022054,2]
[372532578,1752673874134,-460.0,0.00022054,2]
[372532579,1752673874144,-720.64,0.00022054,2]
[372532580,1752673874159,-460.0,0.00022054,2]
[372532581,1752673874169,-460.0,0.00022054,2]
[372532582,1752673874178,-460.0,0.00022054,2]
[372532583,1752673874188,-460.0,0.00022054,2]
[372532584,1752673874197,-150.0,0.00022054,2]
[372532585,1752673874207,-500.0,0.00022054,2]
[372532586,1752673874217,-796.27,0.00022054,2]
[372532587,1752673874226,-460.0,0.00022054,2]
[372532588,1752673874235,-3067.69,0.00022054,2]
[372532589,1752673874245,-460.0,0.00022054,2]
[372532590,1752673874254,-1765.98,0.00022054,2]
[372532591,1752673874264,-460.0,0.00022054,2]
[372532592,1752673874273,-460.0,0.00022054,2]
[372532593,1752673874283,-1409.07,0.00022054,2]
[372532594,1752673874293,-150.0,0.00022054,2]
[372532595,1752673874302,-2352.27,0.00022054,2]
[372532596,1752673874311,-4609.35,0.00022054,2]
[372532597,1752673874320,-783.0,0.00022054,2]
[372532598,1752673874330,-2573.19,0.00022054,2]
[372532599,1752673874340,-460.0,0.00022054,2]
[372532600,1752673874349,-1128.0,0.00022054,2]
[372532601,1752673874359,-938.18,0.00022054,2]
[372532602,1752673874368,-2441.11,0.00022054,2]
[372532603,1752673874378,-1399.15,0.00022054,2]
[372532604,1752673874388,-460.0,0.00022054,2]
[372532605,1752673874398,-460.0,0.00022054,2]
[372532606,1752673874411,-460.0,0.00022054,2]
[372532607,1752673874421,-460.0,0.00022054,2]
[372532608,1752673874431,-460.0,0.00022054,2]
[372532609,1752673874440,-5066.09,0.00022054,2]
[372532610,1752673874450,-460.0,0.00022054,2]
[372532611,1752673874459,-2376.47,0.00022054,2]
[372532612,1752673874469,-460.0,0.00022054,2]
[372532613,1752673874478,-1583.1,0.00022054,2]
[372532614,1752673874488,-460.0,0.00022054,2]
[372532615,1752673874498,-2945.78,0.00022054,2]
[372532616,1752673874508,-460.0,0.00022054,2]
[372532617,1752673874518,-2370.36,0.00022054,2]
[372532618,1752673874528,-627.68,0.00022054,2]
[372532619,1752673874538,-1477.32,0.00022054,2]
[372532620,1752673874548,-572.35,0.00022054,2]
[372532621,1752673874557,-510.54,0.00022054,2]
[372532622,1752673874567,-602.06,0.00022054,2]
[372532623,1752673874577,-460.0,0.00022054,2]
[372532624,1752673874586,-179.45969286,0.00022054,2]
[372532625,1752673874596,-2821.92,0.00022054,2]
[372532626,1752673874606,-750.64,0.00022054,2]
[372532627,1752673874616,-460.0,0.00022054,2]
[372532628,1752673874625,-460.0,0.00022054,2]
[372532629,1752673874734,-1801.53,0.00022054,2]
[372532630,1752673874745,-2866.26,0.00022054,2]
[372532631,1752673874754,-1928.84,0.00022054,2]
[372532632,1752673874764,-460.0,0.00022054,2]
[372532633,1752673874774,-463.88144004,0.00022054,2]
[372532634,1752673874783,-1412.74,0.00022054,2]
[372532635,1752673874793,-479.56,0.00022054,2]
[372532636,1752673874803,-460.0,0.00022054,2]
[372532637,1752673874812,-460.0,0.00022054,2]
[372532638,1752673874822,-6102.89,0.00022054,2]
[372532639,1752673874831,-2965.14,0.00022054,2]
[372532640,1752673874841,-460.0,0.00022054,2]
[372532641,1752673874850,-1212.72,0.00022054,2]
[372532642,1752673874859,-690.3,0.00022054,2]
[372532643,1752673874869,-460.0,0.00022054,2]
[372532644,1752673874879,-2126.55,0.00022054,2]
[372532645,1752673874888,-460.0,0.00022054,2]
[372532646,1752673874898,-460.0,0.00022054,2]
[372532647,1752673874913,-1187.42,0.00022054,2]
[372532648,1752673874922,-1213.09,0.00022054,2]
[372532649,1752673874932,-163.36480195,0.00022054,2]
[372532650,1752673874942,-679.36,0.00022054,2]
[372532651,1752673874951,-2571.76,0.00022054,2]
[372532652,1752673874960,-460.0,0.00022054,2]
[372532653,1752673874970,-460.0,0.00022054,2]
[372532654,1752673874980,-1560.36,0.00022054,2]
[372532655,1752673874989,-3873.51,0.00022054,2]
[372532656,1752673874999,-2557.51,0.00022054,2]
[372532657,1752673875008,-1214.2,0.00022054,2]
[372532658,1752673875018,-5698.65,0.00022054,2]
[372532659,1752673875028,-759.24,0.00022054,2]
[372532660,1752673875037,-460.0,0.00022054,2]
[372532661,1752673875047,-460.0,0.00022054,2]
[372532662,1752673875056,-3506.32,0.00022054,2]
[372532663,1752673875066,-460.0,0.00022054,2]
[372532664,1752673875075,-3658.67,0.00022054,2]
[372532665,1752673875085,-489.99,0.00022054,2]
[372532666,1752673875094,-460.0,0.00022054,2]
[372532667,1752673875103,-500.0,0.00022054,2]
[372532668,1752673875113,-1228.24,0.00022054,2]
[372532669,1752673875123,-460.0,0.00022054,2]
[372532670,1752673875132,-460.0,0.00022054,2]
[372532671,1752673875141,-2182.34,0.00022054,2]
[372532672,1752673875151,-460.0,0.00022054,2]
[372532673,1752673875164,-1806.09,0.00022054,2]
[372532674,1752673875173,-978.56,0.00022054,2]
[372532675,1752673875183,-460.0,0.00022054,2]
[372532676,1752673875193,-2533.66,0.00022054,2]
[372532677,1752673875202,-460.0,0.00022054,2]
[372532678,1752673875211,-2904.67,0.00022054,2]
[372532679,1752673875221,-500.0,0.00022054,2]
[372532680,1752673875230,-945.17,0.00022054,2]
[372532681,1752673875239,-727.29,0.00022054,2]
[372532682,1752673875249,-769.18,0.00022054,2]
[372532683,1752673875259,-2061.18,0.00022054,2]
[372532684,1752673875269,-460.0,0.00022054,2]
[372532685,1752673875278,-9549.25,0.00022054,2]
[372532686,1752673875288,-460.0,0.00022054,2]
[372532687,1752673875297,-460.0,0.00022054,2]
[372532688,1752673875307,-420.95017217,0.00022054,2]
[372532689,1752673875316,-1579.07,0.00022054,2]
[372532690,1752673875326,-13415.29,0.00022054,2]
[372532691,1752673875335,-511.8241127,0.00022054,2]
[372532692,1752673875344,-789.04,0.00022054,2]
[372532693,1752673875354,-460.0,0.00022054,2]
[372532694,1752673875364,-460.0,0.00022054,2]
[372532695,1752673875374,-460.0,0.00022054,2]
[372532696,1752673875384,-460.0,0.00022054,2]
[372532697,1752673875394,-460.0,0.00022054,2]
[372532698,1752673875406,-660.42,0.00022054,2]
[372532699,1752673875416,-572.43,0.00022054,2]
[372532700,1752673875426,-24833.37,0.00022054,2]
[372532701,1752673875435,-985.29,0.00022054,2]
[372532702,1752673875445,-10385.81,0.00022054,2]
[372532703,1752673875455,-51107.29,0.00022054,2]
[372532704,1752673875465,-4645.84,0.00022054,2]
[372532705,1752673875475,-1750.61,0.00022054,2]
[372532706,1752673875484,-460.0,0.00022054,2]
[372532707,1752673875494,-4354.3,0.00022054,2]
[372532708,1752673875504,-460.0,0.00022054,2]
[372532709,1752673875515,-460.0,0.00022054,2]
[372532710,1752673875525,-460.0,0.00022054,2]
[372532711,1752673875538,-518.95,0.00022054,2]
[372532712,1752673875551,-460.0,0.00022054,2]
[372532713,1752673875561,-534.33,0.00022054,2]
[372532714,1752673875570,-1312.65,0.00022054,2]
[372532715,1752673875580,-270.45857456,0.00022054,2]
[372532716,1752673875598,-675.13488109,0.00022054,2]
[372532717,1752673875610,-1710.22654435,0.00022054,2]
[372532718,1752673875619,-3960.7924522,0.00022054,2]
[372532719,1752673875631,-710.78100344,0.00022054,2]
[372532720,1752673875688,-416.08539783,0.00022054,2]
[372532721,1752673876660,-209.37843791,0.000219,2]
[372532722,1752673876670,-460.0,0.00021917,2]
[372532723,1752673876681,-460.0,0.00021917,2]
[372532724,1752673876691,-19.44114653,0.00022054,2]
[372532725,1752673876702,-460.0,0.00022054,2]
[372532726,1752673876713,-2229.55532529,0.00022054,2]
[372532727,1752673877643,-460.0,0.00021917,2]
[372532728,1752673877654,-837.69,0.00021917,2]
[372532729,1752673877663,-460.0,0.00021917,2]
[372532730,1752673877675,-1766.61467471,0.00022054,2]
[372532731,1752673877686,-460.0,0.00022054,2]
[372532732,1752673877697,-436.59,0.00022054,2]
[372532733,1752673877707,-460.0,0.00022054,2]
[372532734,1752673877717,-460.0,0.00022054,2]
[372532735,1752673877727,-618.5003253,0.00022054,2]
[372532736,1752673877753,-219.1896747,0.00022054,2]
[372532737,1752673877762,-700.0,0.00022054,8]
[372532738,1752673877772,-700.0,0.00022054,8]
[372532739,1752673877782,-700.0,0.00022054,8]
[372532740,1752673877792,-700.0,0.00022054,8]
[372532741,1752673877801,-700.0,0.00022054,8]
[372532742,1752673877810,-700.0,0.00022054,8]
[372532743,1752673877819,-700.0,0.00022054,8]
[372532744,1752673877828,-700.0,0.00022054,8]
[372532745,1752673877837,-700.0,0.00022054,8]
[372532746,1752673877847,-700.0,0.00022054,8]
[372532747,1752673877857,-700.0,0.00022054,8]
[372532748,1752673877866,-700.0,0.00022054,8]
[372532749,1752673877875,-700.0,0.00022054,8]
[372532750,1752673877884,-700.0,0.00022054,8]
[372532751,1752673877894,-700.0,0.00022054,8]
[372532752,1752673877905,-741.90659589,0.00022054,8]
[372532753,1752673877914,-600.0,0.00022055,2]
[372532754,1752673877924,-476.61752775,0.0002206,7]
[372532755,1752673877933,-300.0,0.00022063,2]
[372532756,1752673877942,-150.0,0.00022072,2]
[372532757,1752673877951,-500.0,0.00022073,2]
[372532758,1752673877961,-500.0,0.00022073,2]
[372532759,1752673877971,-160.58599688,0.00022073,2]
[372532760,1752673877981,-500.0,0.00022073,2]
[372532761,1752673877990,-500.0,0.00022073,2]
[372532762,1752673877999,-500.0,0.00022073,2]
[372532763,1752673878009,-500.0,0.00022073,2]
[372532764,1752673878018,-500.0,0.00022073,2]
[372532765,1752673878028,-500.0,0.00022073,2]
[372532766,1752673878037,-500.0,0.00022073,2]
[372532767,1752673878046,-500.0,0.00022073,2]
[372532768,1752673878055,-519.35510066,0.00022073,2]
[372532769,1752673878065,-150.0,0.00022081,2]
[372532770,1752673878075,-150.0,0.00022082,2]
[372532771,1752673878084,-150.0,0.00022082,2]
[372532772,1752673878094,-150.0,0.00022083,2]
[372532773,1752673878103,-150.0,0.00022084,2]
[372532774,1752673878113,-150.0,0.00022088,2]
[372532775,1752673878122,-150.0,0.0002209,2]
[372532776,1752673878132,-381.2785352,0.00022091,4]
[372532777,1752673878141,-381.2785352,0.00022091,4]
[372532778,1752673878151,-381.2785352,0.00022091,4]
[372532779,1752673878163,-381.2785352,0.00022091,4]
[372532780,1752673878173,-381.2785352,0.00022091,4]
[372532781,1752673878182,-381.2785352,0.00022091,4]
[372532782,1752673878192,-381.2785352,0.00022091,4]
[372532783,1752673878202,-100.7397733,0.00022091,4]
[372532785,1752673996033,1444.0,0.00029041,120]
[372532787,1752674035242,1045.63365205,0.00030137,120]
[372532879,1752674116378,159.62,0.00013699,2]
[372532926,1752674251854,150.0,0.00027909,120]
[372532943,1752674361611,1800.0,0.00030137,120]
[372532967,1752674725134,566473.16649815,0.0003,120]
[372532977,1752674778837,1444.0,0.00029041,120]
[372532978,1752674795246,654.0,0.00030137,120]
[372532979,1752674813149,5567.27,0.00030137,120]
[372533039,1752675031698,-516.0,0.0001813,2]
[372533040,1752675031709,-278.168921,0.00019928,2]
[372533041,1752675031718,-150.0,0.00019948,4]
[372533042,1752675031727,-150.0,0.00019948,4]
[372533043,1752675031737,-150.0,0.00019948,4]
[372533044,1752675031746,-500.0,0.00020159,2]
[372533045,1752675031755,-600.0,0.00020159,2]
[372533046,1752675031764,-600.0,0.00020159,2]
[372533047,1752675031774,-370.2,0.00020502,2]
[372533048,1752675031784,-190.0,0.00020539,7]
[372533049,1752675031793,-177.76,0.00020615,2]
[372533050,1752675031803,-851.0,0.0002066,2]
[372533051,1752675031813,-260.21009744,0.00020661,2]
[372533052,1752675031826,-585.88327243,0.00020661,2]
[372533053,1752675031838,-189.2862298,0.00020661,2]
[372533054,1752675031847,-124.94823914,0.00020804,2]
[372533055,1752675031858,-36.39176086,0.00020804,2]
[372533056,1752675031868,-404.36,0.00020828,2]
[372533057,1752675031878,-4031.856,0.00020887,2]
[372533058,1752675031887,-207.4,0.00020887,2]
[372533059,1752675031898,-785.17826843,0.00020942,2]
[372533060,1752675031987,-669.67449936,0.00020942,2]
[372533061,1752675031999,-570.27217021,0.00020942,2]
[372533062,1752675032024,-2155.909734,0.00020942,2]
[372533063,1752675032033,-4335.73295486,0.00020997,2]
[372533064,1752675032042,-524.0,0.00021,2]
[372533065,1752675032051,-250.0,0.00021002,2]
[372533066,1752675032060,-1000.0,0.00021043,2]
[372533067,1752675032069,-250.0,0.00021043,2]
[372533068,1752675032078,-150.0,0.00021043,2]
[372533069,1752675032088,-300.0,0.00021043,2]
[372533070,1752675032097,-615.17788553,0.00021052,2]
[372533071,1752675032108,-3880.97718866,0.00021052,2]
[372533072,1752675032116,-1000.0,0.00021085,2]
[372533073,1752675032124,-4662.51281194,0.00021107,2]
[372533074,1752675032137,-4835.02578598,0.00021162,2]
[372533075,1752675032146,-5013.92174006,0.00021217,2]
[372533076,1752675032156,-600.0,0.00021255,2]
[372533077,1752675032165,-600.0,0.00021255,2]
[372533078,1752675032174,-5199.43684444,0.00021272,2]
[372533079,1752675032184,-5391.81600769,0.00021327,2]
[372533080,1752675032194,-2568.92680286,0.00021382,2]
[372533081,1752675032206,-2064.76368793,0.00021382,2]
[372533083,1752675037473,-332.60100883,0.00021382,2]
[372533084,1752675037484,-160.0,0.00021459,2]
[372533085,1752675037494,-600.0,0.00021459,2]
[372533086,1752675037504,-237.99946073,0.00021469,2]
[372533087,1752675037514,-16945.14383023,0.00021472,2]
[372533088,1752675037524,-700.0,0.000215,7]
[372533089,1752675037534,-370.2,0.00021527,2]
[372533090,1752675037543,-1500.0,0.000216,7]
[372533091,1752675037553,-477.12220254,0.00021627,2]
[372533092,1752675037563,-604.314818,0.00021648,8]
[372533093,1752675037572,-2300.0,0.000217,7]
[372533094,1752675037582,-578.1767352,0.00021707,2]
[372533095,1752675037592,-150.96,0.00021768,2]
[372533096,1752675037602,-150.0,0.00021768,2]
[372533097,1752675037611,-150.0,0.00021768,2]
[372533098,1752675037621,-3100.0,0.000218,7]
[372533099,1752675037633,-477.12220255,0.00021813,2]
[372533100,1752675037643,-920.94125973,0.00021816,2]
[372533101,1752675037788,-777.20780341,0.00021816,2]
[372533102,1752675037798,-423.3224,0.00021817,2]
[372533103,1752675037809,-5000.0,0.00021817,2]
[372533105,1752675037819,-169.0697966,0.00021817,2]
[372533260,1752675039641,-190.95431902,0.00021817,2]
[372533262,1752675039652,-153.81501412,0.00021817,2]
[372533264,1752675039662,-3409.86257104,0.00021817,2]
[372533266,1752675039671,-210.72748344,0.00021858,2]
[372533268,1752675039681,-6526.45300457,0.00021858,2]
[372533272,1752675039715,-29858.68658412,0.00021858,2]
[372533274,1752675039725,-160.0,0.00021859,2]
[372533276,1752675039735,-838.7287696,0.00021859,2]
[372533278,1752675039745,-476.61752775,0.00021859,2]
[372533280,1752675039754,-1615.17036,0.0002187,2]
[372533282,1752675039764,-1698.14906307,0.00021877,2]
[372533284,1752675039774,-3409.86257099,0.00021878,2]
[372533286,1752675039784,-2687.12679018,0.00021878,10]
[372533288,1752675039794,-200.0,0.00021895,2]
[372533290,1752675039803,-150.0,0.00021896,2]
[372533292,1752675039812,-3800.0,0.000219,7]
[372533294,1752675039822,-930.41,0.000219,2]
[372533296,1752675039832,-1930.19,0.000219,2]
[372533298,1752675039841,-2000.0,0.000219,2]
[372533301,1752675039851,-154.51959617,0.00021916,2]
[372533303,1752675039861,-186.71211542,0.00021916,2]
[372533304,1752675039870,-165.22075171,0.00021916,2]
[372533306,1752675039880,-500.0,0.00021916,2]
[372533308,1752675039892,-585.40410668,0.00021916,2]
[372533310,1752675039902,-492.28803462,0.00021916,2]
[372533313,1752675039912,-500.0,0.00021916,2]
[372533315,1752675039921,-448.86924777,0.00021916,2]
[372533317,1752675039931,-261.47629315,0.00021916,2]
[372533318,1752675039942,-500.0,0.00021916,2]
[372533321,1752675039951,-566.52520955,0.00021916,2]
[372533323,1752675039961,-8805.25553927,0.00021916,2]
[372533324,1752675039970,-294.97138766,0.00021916,2]
[372533326,1752675039980,-6757.98724263,0.00021917,2]
[372533329,1752675039991,-179.789812,0.00021917,2]
[372533331,1752675040001,-179.789812,0.00021917,2]
[372533333,1752675040011,-179.789812,0.00021917,2]
[372533335,1752675040020,-179.789812,0.00021917,2]
[372533337,1752675040031,-179.789812,0.00021917,2]
[372533339,1752675040040,-179.789812,0.00021917,2]
[372533341,1752675040049,-179.789812,0.00021917,2]
[372533343,1752675040063,-179.789812,0.00021917,2]
[372533345,1752675040073,-179.789812,0.00021917,2]
[372533347,1752675040082,-179.789812,0.00021917,2]
[372533349,1752675040092,-179.789812,0.00021917,2]
[372533351,1752675040101,-179.789812,0.00021917,2]
[372533353,1752675040112,-179.789812,0.00021917,2]
[372533355,1752675040121,-179.789812,0.00021917,2]
[372533357,1752675040135,-179.789812,0.00021917,2]
[372533359,1752675040150,-179.789812,0.00021917,2]
[372533362,1752675040159,-179.789812,0.00021917,2]
[372533364,1752675040169,-179.789812,0.00021917,2]
[372533366,1752675040181,-460.0,0.00021917,2]
[372533369,1752675040191,-151.0,0.00021917,2]
[372533371,1752675040201,-151.0,0.00021917,2]
[372533373,1752675040211,-151.187,0.00021917,2]
[372533375,1752675040222,-460.0,0.00021917,2]
[372533377,1752675040234,-151.0,0.00021917,2]
[372533379,1752675040244,-460.0,0.00021917,2]
[372533381,1752675040253,-460.0,0.00021917,2]
[372533383,1752675040263,-460.0,0.00021917,2]
[372533385,1752675040274,-151.0,0.00021917,2]
[372533387,1752675040283,-151.0,0.00021917,2]
[372533389,1752675040293,-151.0,0.00021917,2]
[372533391,1752675040303,-151.0,0.00021917,2]
[372533393,1752675040313,-151.0,0.00021917,2]
[372533395,1752675040323,-151.0,0.00021917,2]
[372533397,1752675040333,-151.0,0.00021917,2]
[372533399,1752675040342,-151.0,0.00021917,2]
[372533401,1752675040351,-151.0,0.00021917,2]
[372533403,1752675040361,-151.0,0.00021917,2]
[372533405,1752675040371,-278.691009,0.00021917,2]
[372533407,1752675040380,-206.571443,0.00021917,2]
[372533409,1752675040392,-151.0,0.00021917,2]
[372533411,1752675040402,-151.0,0.00021917,2]
[372533413,1752675040412,-151.0,0.00021917,2]
[372533415,1752675040422,-151.0,0.00021917,2]
[372533417,1752675040432,-151.0,0.00021917,2]
[372533419,1752675040441,-151.0,0.00021917,2]
[372533421,1752675040451,-151.0,0.00021917,2]
[372533424,1752675040461,-151.0,0.00021917,2]
[372533426,1752675040470,-151.0,0.00021917,2]
[372533428,1752675040481,-151.0,0.00021917,2]
[372533430,1752675040491,-151.0,0.00021917,2]
[372533432,1752675040502,-214.09452,0.00021917,2]
[372533434,1752675040511,-221.920984,0.00021917,2]
[372533435,1752675040521,-221.920984,0.00021917,2]
[372533438,1752675040531,-221.920984,0.00021917,2]
[372533439,1752675040540,-221.920984,0.00021917,2]
[372533442,1752675040550,-221.920984,0.00021917,2]
[372533444,1752675040560,-221.920984,0.00021917,2]
[372533446,1752675040570,-221.920984,0.00021917,2]
[372533448,1752675040581,-221.920984,0.00021917,2]
[372533450,1752675040591,-221.920984,0.00021917,2]
[372533451,1752675040601,-221.920984,0.00021917,2]
[372533454,1752675040612,-221.920984,0.00021917,2]
[372533456,1752675040622,-221.920984,0.00021917,2]
[372533457,1752675040632,-221.920984,0.00021917,2]
[372533460,1752675040644,-221.920984,0.00021917,2]
[372533462,1752675040654,-221.920984,0.00021917,2]
[372533464,1752675040663,-221.920984,0.00021917,2]
[372533465,1752675040673,-221.920984,0.00021917,2]
[372533468,1752675040683,-221.920984,0.00021917,2]
[372533470,1752675040693,-221.920984,0.00021917,2]
[372533472,1752675040703,-221.920985,0.00021917,2]
[372533473,1752675040712,-1231.196802,0.00021917,2]
[372533476,1752675040722,-460.0,0.00021917,2]
[372533477,1752675040732,-1238.427082,0.00021917,2]
[372533480,1752675040743,-1221.689011,0.00021917,2]
[372533481,1752675040753,-460.0,0.00021917,2]
[372533482,1752675040763,-460.0,0.00021917,2]
[372533483,1752675040774,-460.0,0.00021917,2]
[372533484,1752675040784,-460.0,0.00021917,2]
[372533485,1752675040794,-460.0,0.00021917,2]
[372533486,1752675040805,-518.47,0.00021917,2]
[372533487,1752675040815,-634.53,0.00021917,2]
[372533489,1752675040826,-460.0,0.00021917,2]
[372533491,1752675040836,-460.0,0.00021917,2]
[372533493,1752675040846,-460.0,0.00021917,2]
[372533495,1752675040856,-460.0,0.00021917,2]
[372533497,1752675040866,-474.72,0.00021917,2]
[372533499,1752675040876,-460.0,0.00021917,2]
[372533501,1752675040888,-460.0,0.00021917,2]